[Event "Early-Titled-Tuesday-Blitz-March-05-2024"]
[Site "Chess.com"]
[Date "2024.03.05"]
[Round "4"]
[White "ChessLebaneseSalah"]
[Black "ansko1999"]
[Result "1-0"]
[WhiteElo "2553"]
[BlackElo "2719"]
[TimeControl "180+1"]
[EndTime "8:43:12 PST"]
[Termination "ChessLebaneseSalah won on time"]

1. e4 {[%clk 0:03:00.9]} 1... d6 {[%clk 0:02:59]} 2. d4 {[%clk 0:02:59.8]} 2...
Nf6 {[%clk 0:02:58.7]} 3. Nc3 {[%clk 0:02:59.1]} 3... c6 {[%clk 0:02:58.6]} 4.
Nf3 {[%clk 0:02:58.7]} 4... Qa5 {[%clk 0:02:49]} 5. Bd3 {[%clk 0:02:56.6]} 5...
e5 {[%clk 0:02:47.2]} 6. O-O {[%clk 0:02:52.6]} 6... Bg4 {[%clk 0:02:42]} 7. Be3
{[%clk 0:02:50.4]} 7... Be7 {[%clk 0:02:35.5]} 8. h3 {[%clk 0:02:48.9]} 8... Bh5
{[%clk 0:02:32.7]} 9. Re1 {[%clk 0:02:41]} 9... Nbd7 {[%clk 0:02:29.8]} 10. a3
{[%clk 0:02:34.4]} 10... O-O {[%clk 0:02:28.6]} 11. g4 {[%clk 0:02:32.7]} 11...
Bg6 {[%clk 0:02:28.3]} 12. Nh4 {[%clk 0:02:30.1]} 12... Rfe8 {[%clk 0:02:13.6]}
13. Nxg6 {[%clk 0:02:29.9]} 13... hxg6 {[%clk 0:02:13.1]} 14. Bf1 {[%clk
0:02:15.9]} 14... Rad8 {[%clk 0:02:02.9]} 15. Qf3 {[%clk 0:02:10.8]} 15... Nh7
{[%clk 0:01:57.4]} 16. d5 {[%clk 0:02:04.5]} 16... c5 {[%clk 0:01:46.4]} 17. Nb5
{[%clk 0:01:49.5]} 17... a6 {[%clk 0:01:39.3]} 18. b4 {[%clk 0:01:28.2]} 18...
Qb6 {[%clk 0:01:20]} 19. Nc3 {[%clk 0:01:22.9]} 19... Qc7 {[%clk 0:01:16.3]} 20.
b5 {[%clk 0:01:19.4]} 20... a5 {[%clk 0:01:15.9]} 21. a4 {[%clk 0:01:18.4]}
21... Bg5 {[%clk 0:01:12.1]} 22. Kg2 {[%clk 0:01:12]} 22... Rf8 {[%clk
0:01:09.5]} 23. Bxg5 {[%clk 0:01:00.4]} 23... Nxg5 {[%clk 0:01:09.2]} 24. Qe3
{[%clk 0:01:01.1]} 24... f6 {[%clk 0:01:03.4]} 25. h4 {[%clk 0:00:57.6]} 25...
Nf7 {[%clk 0:01:03]} 26. Kh2 {[%clk 0:00:53.7]} 26... Nb6 {[%clk 0:00:58.5]} 27.
Bh3 {[%clk 0:00:48.1]} 27... g5 {[%clk 0:00:47.9]} 28. h5 {[%clk 0:00:43.4]}
28... Nh6 {[%clk 0:00:41]} 29. Kg3 {[%clk 0:00:36.6]} 29... Qf7 {[%clk
0:00:26.6]} 30. f3 {[%clk 0:00:34.8]} 30... g6 {[%clk 0:00:25.3]} 31. hxg6
{[%clk 0:00:23.8]} 31... Qxg6 {[%clk 0:00:26.2]} 32. Rh1 {[%clk 0:00:24]} 32...
Rd7 {[%clk 0:00:25.8]} 33. Qe2 {[%clk 0:00:23]} 33... Rh7 {[%clk 0:00:25.5]} 34.
Rh2 {[%clk 0:00:22.7]} 34... Kg7 {[%clk 0:00:25.6]} 35. Rah1 {[%clk 0:00:22.3]}
35... Rfh8 {[%clk 0:00:25.8]} 36. Bg2 {[%clk 0:00:21.7]} 36... Nf7 {[%clk
0:00:13.6]} 37. Bf1 {[%clk 0:00:21.2]} 37... Rh6 {[%clk 0:00:11.8]} 38. Qf2
{[%clk 0:00:19.5]} 38... R8h7 {[%clk 0:00:08.7]} 39. Bd3 {[%clk 0:00:18.2]}
39... Kf8 {[%clk 0:00:08.7]} 40. Be2 {[%clk 0:00:18.2]} 40... Qg7 {[%clk
0:00:09.1]} 41. Qg2 {[%clk 0:00:18.2]} 41... Qh8 {[%clk 0:00:09.4]} 42. Qf2
{[%clk 0:00:17.3]} 42... Kg7 {[%clk 0:00:08.8]} 43. Qe3 {[%clk 0:00:15.9]} 43...
Qg8 {[%clk 0:00:08.6]} 44. Qf2 {[%clk 0:00:14.9]} 44... Nh8 {[%clk 0:00:08.3]}
45. Rxh6 {[%clk 0:00:13.4]} 45... Rxh6 {[%clk 0:00:09.2]} 46. Rxh6 {[%clk
0:00:14.1]} 46... Kxh6 {[%clk 0:00:09.1]} 47. Qh2+ {[%clk 0:00:15]} 47... Kg7
{[%clk 0:00:09.6]} 48. Bd1 {[%clk 0:00:13.5]} 48... Nc4 {[%clk 0:00:08.6]} 49.
Be2 {[%clk 0:00:10.8]} 49... Nb6 {[%clk 0:00:08.1]} 50. Bd3 {[%clk 0:00:10.5]}
50... Ng6 {[%clk 0:00:08.4]} 51. Bf1 {[%clk 0:00:08]} 51... Nf4 {[%clk
0:00:07.6]} 52. Kf2 {[%clk 0:00:07.9]} 52... Qf8 {[%clk 0:00:05.1]} 53. Nd1
{[%clk 0:00:07.9]} 53... Nxa4 {[%clk 0:00:04.2]} 54. Ne3 {[%clk 0:00:08.1]}
54... Ng6 {[%clk 0:00:01.5]} 55. Nf5+ {[%clk 0:00:09]} 55... Kf7 {[%clk
0:00:01.7]} 56. Qh7+ {[%clk 0:00:08.6]} 56... Ke8 {[%clk 0:00:02.3]} 57. Qxg6+
{[%clk 0:00:08.9]} 57... Kd8 {[%clk 0:00:02.1]} 58. Qh7 {[%clk 0:00:08.4]} 58...
Nb6 {[%clk 0:00:02.1]} 59. Qxb7 {[%clk 0:00:08]} 59... Nd7 {[%clk 0:00:02.4]}
60. Qa8+ {[%clk 0:00:07.5]} 60... Kc7 {[%clk 0:00:01.8]} 61. Qxa5+ {[%clk
0:00:07.1]} 1-0

[Event "Early-Titled-Tuesday-Blitz-March-05-2024"]
[Site "Chess.com"]
[Date "2024.03.05"]
[Round "4"]
[White "Hope_6"]
[Black "Salem-AR"]
[Result "0-1"]
[WhiteElo "2823"]
[BlackElo "3037"]
[TimeControl "180+1"]
[EndTime "8:43:20 PST"]
[Termination "Salem-AR won on time"]

1. e4 {[%clk 0:02:59.8]} 1... c5 {[%clk 0:02:59.3]} 2. Nf3 {[%clk 0:03:00.1]}
2... Nc6 {[%clk 0:03:00]} 3. d4 {[%clk 0:03:00.4]} 3... cxd4 {[%clk 0:03:00.2]}
4. Nxd4 {[%clk 0:03:01.3]} 4... Nf6 {[%clk 0:03:01]} 5. Nc3 {[%clk 0:03:01.8]}
5... e5 {[%clk 0:03:01.4]} 6. Ndb5 {[%clk 0:03:02.2]} 6... d6 {[%clk 0:03:02]}
7. Bg5 {[%clk 0:03:01.9]} 7... a6 {[%clk 0:03:02.1]} 8. Na3 {[%clk 0:03:02]}
8... b5 {[%clk 0:03:02.8]} 9. Nd5 {[%clk 0:03:02.5]} 9... Be7 {[%clk 0:03:03.2]}
10. Bxf6 {[%clk 0:03:03]} 10... Bxf6 {[%clk 0:03:04]} 11. c3 {[%clk 0:03:03.6]}
11... O-O {[%clk 0:03:02.3]} 12. Nc2 {[%clk 0:03:03.4]} 12... Rb8 {[%clk
0:03:03]} 13. Ncb4 {[%clk 0:03:01.9]} 13... Bb7 {[%clk 0:02:51.7]} 14. Nxc6
{[%clk 0:02:54.6]} 14... Bxc6 {[%clk 0:02:51.9]} 15. Be2 {[%clk 0:02:52.9]}
15... Bg5 {[%clk 0:02:45.8]} 16. O-O {[%clk 0:02:51.7]} 16... g6 {[%clk
0:02:44.5]} 17. Qd3 {[%clk 0:02:42.7]} 17... a5 {[%clk 0:02:34.7]} 18. a3 {[%clk
0:02:30.8]} 18... Rb7 {[%clk 0:02:30.7]} 19. Bd1 {[%clk 0:02:29.5]} 19... Kh8
{[%clk 0:02:25.3]} 20. Bb3 {[%clk 0:02:20.6]} 20... f5 {[%clk 0:02:25.3]} 21. f3
{[%clk 0:02:13.7]} 21... Qb8 {[%clk 0:02:00.1]} 22. Kh1 {[%clk 0:02:11.3]} 22...
Qa7 {[%clk 0:01:45.5]} 23. Rad1 {[%clk 0:01:59.4]} 23... Rg7 {[%clk 0:01:34.1]}
24. Qe2 {[%clk 0:01:51.3]} 24... Bd8 {[%clk 0:01:24.1]} 25. Ne3 {[%clk
0:01:32.7]} 25... Qe7 {[%clk 0:01:10.3]} 26. Bd5 {[%clk 0:01:27.6]} 26... Bd7
{[%clk 0:01:10]} 27. c4 {[%clk 0:01:19.2]} 27... f4 {[%clk 0:00:59.4]} 28. Ng4
{[%clk 0:01:12.8]} 28... h5 {[%clk 0:00:52.2]} 29. Nf2 {[%clk 0:01:12.5]} 29...
b4 {[%clk 0:00:37.9]} 30. axb4 {[%clk 0:01:10.1]} 30... axb4 {[%clk 0:00:38.8]}
31. Nd3 {[%clk 0:01:04.8]} 31... b3 {[%clk 0:00:38.9]} 32. Ra1 {[%clk
0:00:59.6]} 32... Bb6 {[%clk 0:00:37.9]} 33. Ra6 {[%clk 0:00:58.9]} 33... Bd4
{[%clk 0:00:37.9]} 34. Rfa1 {[%clk 0:00:49.2]} 34... g5 {[%clk 0:00:36.3]} 35.
c5 {[%clk 0:00:38.6]} 35... dxc5 {[%clk 0:00:33.1]} 36. Rh6+ {[%clk 0:00:37.4]}
36... Rh7 {[%clk 0:00:33.7]} 37. Rxh7+ {[%clk 0:00:37.7]} 37... Qxh7 {[%clk
0:00:31.4]} 38. Bxb3 {[%clk 0:00:38]} 38... Bb5 {[%clk 0:00:28.7]} 39. Rc1
{[%clk 0:00:29.2]} 39... g4 {[%clk 0:00:28.4]} 40. Bc4 {[%clk 0:00:21.8]} 40...
Bd7 {[%clk 0:00:27.5]} 41. b4 {[%clk 0:00:19.2]} 41... cxb4 {[%clk 0:00:26.1]}
42. Nxb4 {[%clk 0:00:20.1]} 42... Rc8 {[%clk 0:00:25.9]} 43. Nd3 {[%clk
0:00:18.4]} 43... Qg6 {[%clk 0:00:23.2]} 44. Bd5 {[%clk 0:00:15.9]} 44... Rxc1+
{[%clk 0:00:23.1]} 45. Nxc1 {[%clk 0:00:16.7]} 45... Qb6 {[%clk 0:00:21]} 46.
Qc2 {[%clk 0:00:11.2]} 46... Qa5 {[%clk 0:00:19.1]} 47. Qd1 {[%clk 0:00:09]}
47... Bb5 {[%clk 0:00:15]} 48. Nb3 {[%clk 0:00:08]} 48... Qc3 {[%clk 0:00:09]}
49. Nxd4 {[%clk 0:00:07.6]} 49... Qxd4 {[%clk 0:00:09.6]} 50. Qxd4 {[%clk
0:00:06.8]} 50... exd4 {[%clk 0:00:09.9]} 51. Bb3 {[%clk 0:00:07.2]} 51... g3
{[%clk 0:00:08.7]} 52. hxg3 {[%clk 0:00:05.1]} 52... fxg3 {[%clk 0:00:09.6]} 53.
Bd1 {[%clk 0:00:05]} 53... Kg7 {[%clk 0:00:06.1]} 54. f4 {[%clk 0:00:04.5]}
54... h4 {[%clk 0:00:06.7]} 55. e5 {[%clk 0:00:04.9]} 55... Bd3 {[%clk
0:00:06.7]} 56. Kg1 {[%clk 0:00:05.4]} 56... Kg6 {[%clk 0:00:06.3]} 57. Bg4
{[%clk 0:00:02.7]} 57... Bc4 {[%clk 0:00:06.7]} 58. Bf3 {[%clk 0:00:01.6]} 58...
Kf5 {[%clk 0:00:06.8]} 59. Bd1 {[%clk 0:00:01.5]} 59... Kxf4 {[%clk 0:00:07.3]}
0-1

[Event "Early-Titled-Tuesday-Blitz-March-05-2024"]
[Site "Chess.com"]
[Date "2024.03.05"]
[Round "4"]
[White "ritanovikova"]
[Black "janhelmer03"]
[Result "0-1"]
[WhiteElo "2198"]
[BlackElo "2400"]
[TimeControl "180+1"]
[EndTime "8:43:21 PST"]
[Termination "janhelmer03 won by checkmate"]

1. e4 {[%clk 0:02:58.2]} 1... c5 {[%clk 0:02:59.1]} 2. Nc3 {[%clk 0:02:58.4]}
2... Nc6 {[%clk 0:02:58.8]} 3. d3 {[%clk 0:02:58.9]} 3... g6 {[%clk 0:02:58.7]}
4. Be3 {[%clk 0:02:50.5]} 4... d6 {[%clk 0:02:53.7]} 5. Qd2 {[%clk 0:02:50.6]}
5... Bg7 {[%clk 0:02:53.4]} 6. g3 {[%clk 0:02:50.8]} 6... e5 {[%clk 0:02:48.2]}
7. h4 {[%clk 0:02:50.6]} 7... h6 {[%clk 0:02:44.7]} 8. h5 {[%clk 0:02:50.3]}
8... g5 {[%clk 0:02:44.5]} 9. f4 {[%clk 0:02:50.5]} 9... exf4 {[%clk 0:02:35.1]}
10. gxf4 {[%clk 0:02:51.4]} 10... gxf4 {[%clk 0:02:23.2]} 11. Bxf4 {[%clk
0:02:52.3]} 11... Nge7 {[%clk 0:02:20.9]} 12. Nb5 {[%clk 0:02:46.2]} 12... Be5
{[%clk 0:02:17.4]} 13. Bxh6 {[%clk 0:02:37]} 13... Be6 {[%clk 0:02:12.8]} 14.
O-O-O {[%clk 0:02:30.6]} 14... Qb6 {[%clk 0:02:09.9]} 15. d4 {[%clk 0:01:56.4]}
15... cxd4 {[%clk 0:02:03.3]} 16. Bf4 {[%clk 0:01:50.8]} 16... O-O-O {[%clk
0:01:52.2]} 17. Nf3 {[%clk 0:01:44.9]} 17... a6 {[%clk 0:01:48.8]} 18. Nbxd4
{[%clk 0:01:38.4]} 18... Nxd4 {[%clk 0:01:43.3]} 19. Nxd4 {[%clk 0:01:37.3]}
19... Bg4 {[%clk 0:01:32.4]} 20. Bh3 {[%clk 0:01:34]} 20... Bxh3 {[%clk
0:01:29.8]} 21. Rxh3 {[%clk 0:01:33.6]} 21... Nc6 {[%clk 0:01:25]} 22. Nb3
{[%clk 0:01:06.8]} 22... a5 {[%clk 0:01:13]} 23. Bxe5 {[%clk 0:00:56.4]} 23...
dxe5 {[%clk 0:01:13.1]} 24. Qe2 {[%clk 0:00:49.5]} 24... a4 {[%clk 0:01:11.2]}
25. Nd2 {[%clk 0:00:42.2]} 25... Kb8 {[%clk 0:00:55.2]} 26. c3 {[%clk 0:00:41]}
26... a3 {[%clk 0:00:52.4]} 27. b3 {[%clk 0:00:41]} 27... Rc8 {[%clk 0:00:40.8]}
28. Nc4 {[%clk 0:00:40.5]} 28... Qc5 {[%clk 0:00:40.9]} 29. Kb1 {[%clk
0:00:34.7]} 29... Ne7 {[%clk 0:00:30.4]} 30. Nd6 {[%clk 0:00:22.7]} 30... Rcf8
{[%clk 0:00:22.1]} 31. Nf5 {[%clk 0:00:21.8]} 31... Nc6 {[%clk 0:00:17.8]} 32.
Qe3 {[%clk 0:00:18.6]} 32... Qa5 {[%clk 0:00:13.3]} 33. Nd6 {[%clk 0:00:18.1]}
33... Rd8 {[%clk 0:00:13]} 34. Rhh1 {[%clk 0:00:17.4]} 34... Rd7 {[%clk
0:00:09.3]} 35. Nc4 {[%clk 0:00:16.2]} 35... Qc7 {[%clk 0:00:09.7]} 36. Rxd7
{[%clk 0:00:16.3]} 36... Qxd7 {[%clk 0:00:10.6]} 37. Kc2 {[%clk 0:00:16.4]}
37... Qg4 {[%clk 0:00:10]} 38. Qd3 {[%clk 0:00:13.7]} 38... Rd8 {[%clk
0:00:09.5]} 39. Qf1 {[%clk 0:00:08.3]} 39... Qxe4+ {[%clk 0:00:08.8]} 40. Kc1
{[%clk 0:00:07.3]} 40... Rd3 {[%clk 0:00:08.4]} 41. Rh4 {[%clk 0:00:04.6]} 41...
Rxc3+ {[%clk 0:00:08.5]} 42. Kd2 {[%clk 0:00:03.7]} 42... Qc2+ {[%clk
0:00:07.6]} 43. Ke1 {[%clk 0:00:03.1]} 43... Qc1+ {[%clk 0:00:06.2]} 44. Kf2
{[%clk 0:00:03.6]} 44... Rf3+ {[%clk 0:00:06.1]} 45. Kxf3 {[%clk 0:00:03.5]}
45... Qxf1+ {[%clk 0:00:07]} 46. Kg4 {[%clk 0:00:04]} 46... Qf4+ {[%clk
0:00:06.9]} 47. Kh3 {[%clk 0:00:04.3]} 47... Qf3+ {[%clk 0:00:07.1]} 48. Kh2
{[%clk 0:00:04.8]} 48... Qf2+ {[%clk 0:00:07.8]} 49. Kh3 {[%clk 0:00:05.2]}
49... Qxa2 {[%clk 0:00:08.5]} 50. h6 {[%clk 0:00:05.3]} 50... Qxb3+ {[%clk
0:00:09.1]} 51. Kg4 {[%clk 0:00:03.5]} 51... Qxc4+ {[%clk 0:00:09.6]} 52. Kg5
{[%clk 0:00:04.2]} 52... Qc1+ {[%clk 0:00:09.2]} 53. Kf6 {[%clk 0:00:03.7]}
53... a2 {[%clk 0:00:09.9]} 54. h7 {[%clk 0:00:04]} 54... Qf1+ {[%clk
0:00:06.9]} 55. Kg7 {[%clk 0:00:03.2]} 55... Qg2+ {[%clk 0:00:07]} 56. Kf8
{[%clk 0:00:03.3]} 56... a1=Q {[%clk 0:00:06.4]} 57. h8=Q {[%clk 0:00:03.8]}
57... Qa3+ {[%clk 0:00:05.2]} 58. Kxf7+ {[%clk 0:00:03.8]} 58... Ka7 {[%clk
0:00:05.7]} 59. Rh7 {[%clk 0:00:03.9]} 59... Qe7# {[%clk 0:00:05.6]} 0-1

[Event "Early-Titled-Tuesday-Blitz-March-05-2024"]
[Site "Chess.com"]
[Date "2024.03.05"]
[Round "4"]
[White "LaPiToB"]
[Black "ajeale2"]
[Result "0-1"]
[WhiteElo "2280"]
[BlackElo "2482"]
[TimeControl "180+1"]
[EndTime "8:43:22 PST"]
[Termination "ajeale2 won by resignation"]

1. d4 {[%clk 0:03:00.9]} 1... g6 {[%clk 0:03:00.1]} 2. c4 {[%clk 0:02:56.2]}
2... Bg7 {[%clk 0:02:59.6]} 3. Nf3 {[%clk 0:02:54.1]} 3... d6 {[%clk 0:03:00.1]}
4. e4 {[%clk 0:02:52.5]} 4... Nd7 {[%clk 0:02:57.9]} 5. Nc3 {[%clk 0:02:51.8]}
5... e5 {[%clk 0:02:58.1]} 6. Be3 {[%clk 0:02:49]} 6... Ne7 {[%clk 0:02:57.7]}
7. Be2 {[%clk 0:02:35.9]} 7... O-O {[%clk 0:02:55.6]} 8. O-O {[%clk 0:02:35.4]}
8... h6 {[%clk 0:02:43.9]} 9. Qd2 {[%clk 0:02:24.7]} 9... Kh7 {[%clk 0:02:43.1]}
10. Bd1 {[%clk 0:02:17.5]} 10... f5 {[%clk 0:02:37.9]} 11. dxe5 {[%clk
0:02:11.5]} 11... dxe5 {[%clk 0:02:30.7]} 12. exf5 {[%clk 0:02:02.3]} 12... Nxf5
{[%clk 0:02:26]} 13. Bc2 {[%clk 0:02:00.2]} 13... Nb6 {[%clk 0:02:19.9]} 14. Qe2
{[%clk 0:01:43.3]} 14... Nxe3 {[%clk 0:02:16.7]} 15. fxe3 {[%clk 0:01:42.4]}
15... Bf5 {[%clk 0:01:55]} 16. e4 {[%clk 0:01:41.5]} 16... Bg4 {[%clk
0:01:49.7]} 17. Rad1 {[%clk 0:01:39.5]} 17... Qe7 {[%clk 0:01:45.4]} 18. b3
{[%clk 0:01:31]} 18... c6 {[%clk 0:01:39.4]} 19. h3 {[%clk 0:01:28.7]} 19...
Bxf3 {[%clk 0:01:26.8]} 20. Rxf3 {[%clk 0:01:28.5]} 20... Rxf3 {[%clk
0:01:26.4]} 21. Qxf3 {[%clk 0:01:29.4]} 21... Qc5+ {[%clk 0:01:26.7]} 22. Kh2
{[%clk 0:01:28.6]} 22... Rf8 {[%clk 0:01:24.1]} 23. Qg3 {[%clk 0:01:24.4]} 23...
Qf2 {[%clk 0:01:20.9]} 24. Bd3 {[%clk 0:01:16.5]} 24... Qb2 {[%clk 0:00:53]} 25.
Bf1 {[%clk 0:01:07.7]} 25... h5 {[%clk 0:00:46.6]} 26. Be2 {[%clk 0:00:42.8]}
26... Bh6 {[%clk 0:00:44.1]} 27. Kh1 {[%clk 0:00:33.9]} 27... Bf4 {[%clk
0:00:33.9]} 28. Qh4 {[%clk 0:00:33.2]} 28... Qxc3 {[%clk 0:00:23.4]} 29. Qe7+
{[%clk 0:00:31.9]} 29... Kg8 {[%clk 0:00:22.8]} 30. Qe6+ {[%clk 0:00:30.7]}
30... Kg7 {[%clk 0:00:20.4]} 31. Bf3 {[%clk 0:00:21.1]} 31... Qc2 {[%clk
0:00:14]} 32. Rd6 {[%clk 0:00:16.5]} 32... Qc1+ {[%clk 0:00:05.5]} 33. Bd1
{[%clk 0:00:15.6]} 33... Qe3 {[%clk 0:00:02]} 34. Qxg6+ {[%clk 0:00:15.4]} 34...
Kh8 {[%clk 0:00:02.5]} 35. Qxh5+ {[%clk 0:00:15.5]} 35... Kg7 {[%clk 0:00:02.2]}
36. Rg6+ {[%clk 0:00:13.8]} 36... Kf7 {[%clk 0:00:02.6]} 37. Rg3+ {[%clk
0:00:11.9]} 37... Ke7 {[%clk 0:00:02.5]} 38. Rxe3 {[%clk 0:00:12.1]} 38... Bxe3
{[%clk 0:00:03.4]} 39. Bf3 {[%clk 0:00:09.8]} 39... Rf6 {[%clk 0:00:02.1]} 40.
Qh7+ {[%clk 0:00:04.4]} 40... Rf7 {[%clk 0:00:02.1]} 41. Qh5 {[%clk 0:00:04.3]}
41... Nd7 {[%clk 0:00:02]} 42. Qh4+ {[%clk 0:00:03.4]} 42... Rf6 {[%clk
0:00:02.6]} 43. Be2 {[%clk 0:00:02.7]} 43... Kd6 {[%clk 0:00:03.1]} 44. g4
{[%clk 0:00:02.7]} 44... Bf4 {[%clk 0:00:02.6]} 45. g5 {[%clk 0:00:03]} 45...
Rg6 {[%clk 0:00:02.8]} 46. Bg4 {[%clk 0:00:02.7]} 46... Rxg5 {[%clk 0:00:03.2]}
47. Bxd7 {[%clk 0:00:02.9]} 47... Kxd7 {[%clk 0:00:04.1]} 48. Qh7+ {[%clk
0:00:02.5]} 48... Kc8 {[%clk 0:00:04.4]} 49. Qh8+ {[%clk 0:00:02.2]} 49... Kc7
{[%clk 0:00:04.3]} 50. Qf6 {[%clk 0:00:03.1]} 50... Rg3 {[%clk 0:00:04.4]} 51.
h4 {[%clk 0:00:03.6]} 51... Kb6 {[%clk 0:00:04.4]} 52. Qd8+ {[%clk 0:00:02.8]}
52... Ka6 {[%clk 0:00:04.1]} 53. b4 {[%clk 0:00:03.7]} 53... Rh3+ {[%clk
0:00:04.4]} 54. Kg2 {[%clk 0:00:02.6]} 54... Ra3 {[%clk 0:00:05]} 55. b5+ {[%clk
0:00:02.2]} 55... cxb5 {[%clk 0:00:04.2]} 56. cxb5+ {[%clk 0:00:03.1]} 56...
Kxb5 {[%clk 0:00:04.7]} 57. Qd5+ {[%clk 0:00:04]} 57... Kb4 {[%clk 0:00:04.9]}
58. h5 {[%clk 0:00:04.8]} 58... Rg3+ {[%clk 0:00:03]} 59. Kf2 {[%clk 0:00:04.7]}
59... Rh3 {[%clk 0:00:03.4]} 60. h6 {[%clk 0:00:03.7]} 60... Rxh6 {[%clk
0:00:03.1]} 61. Qxb7+ {[%clk 0:00:04.1]} 61... Ka5 {[%clk 0:00:02.9]} 62. Qxa7+
{[%clk 0:00:03.8]} 62... Kb4 {[%clk 0:00:03.7]} 63. Qe7+ {[%clk 0:00:03.7]}
63... Kc3 {[%clk 0:00:04.4]} 64. Qc7+ {[%clk 0:00:03.4]} 64... Kd4 {[%clk
0:00:05.1]} 65. a4 {[%clk 0:00:03.5]} 65... Kxe4 {[%clk 0:00:05.5]} 66. Qc6+
{[%clk 0:00:03.3]} 66... Kd4 {[%clk 0:00:05.9]} 67. Qb6+ {[%clk 0:00:03]} 67...
Rxb6 {[%clk 0:00:05.4]} 68. a5 {[%clk 0:00:03.1]} 68... Ra6 {[%clk 0:00:06.3]}
69. Kf3 {[%clk 0:00:02.8]} 69... Rxa5 {[%clk 0:00:07.2]} 70. Kg4 {[%clk
0:00:03.6]} 70... Ra3 {[%clk 0:00:07.4]} 0-1

[Event "Early-Titled-Tuesday-Blitz-March-05-2024"]
[Site "Chess.com"]
[Date "2024.03.05"]
[Round "4"]
[White "Blitzstream"]
[Black "VladimirKramnik"]
[Result "0-1"]
[WhiteElo "2807"]
[BlackElo "2971"]
[TimeControl "180+1"]
[EndTime "8:43:32 PST"]
[Termination "VladimirKramnik won by resignation"]

1. e4 {[%clk 0:03:00.9]} 1... c5 {[%clk 0:02:59.1]} 2. Nf3 {[%clk 0:03:01.3]}
2... d6 {[%clk 0:02:59.1]} 3. d4 {[%clk 0:03:01.6]} 3... cxd4 {[%clk 0:02:59.3]}
4. Nxd4 {[%clk 0:03:02.5]} 4... Nf6 {[%clk 0:02:59.4]} 5. Nc3 {[%clk 0:03:03]}
5... a6 {[%clk 0:02:59.5]} 6. Rg1 {[%clk 0:03:03.3]} 6... g6 {[%clk 0:02:58.5]}
7. g4 {[%clk 0:03:03.2]} 7... Bg7 {[%clk 0:02:57.2]} 8. g5 {[%clk 0:03:03.4]}
8... Nfd7 {[%clk 0:02:56.9]} 9. Be3 {[%clk 0:03:03.4]} 9... Nc6 {[%clk
0:02:55.4]} 10. Qd2 {[%clk 0:03:03]} 10... Qa5 {[%clk 0:02:48.4]} 11. O-O-O
{[%clk 0:03:00.1]} 11... Nc5 {[%clk 0:02:39.9]} 12. Kb1 {[%clk 0:02:54.9]} 12...
Be6 {[%clk 0:02:29.5]} 13. Nxe6 {[%clk 0:02:41]} 13... fxe6 {[%clk 0:02:19.1]}
14. Bh3 {[%clk 0:01:21.4]} 14... Bxc3 {[%clk 0:02:08.9]} 15. Qxc3 {[%clk
0:01:21.3]} 15... Qxc3 {[%clk 0:02:09.4]} 16. bxc3 {[%clk 0:01:22]} 16... Nxe4
{[%clk 0:02:09.4]} 17. Kb2 {[%clk 0:01:19.3]} 17... Rf8 {[%clk 0:00:54]} 18.
Bxe6 {[%clk 0:01:04.8]} 18... Ne5 {[%clk 0:00:53]} 19. f4 {[%clk 0:00:56.1]}
19... Nd7 {[%clk 0:00:53]} 20. h4 {[%clk 0:00:48.6]} 20... Ndc5 {[%clk
0:00:52.6]} 21. Bb3 {[%clk 0:00:46.7]} 21... Rc8 {[%clk 0:00:46.8]} 22. h5
{[%clk 0:00:46.2]} 22... Kd7 {[%clk 0:00:44.7]} 23. Rh1 {[%clk 0:00:40.7]} 23...
Nxb3 {[%clk 0:00:42.8]} 24. axb3 {[%clk 0:00:38.8]} 24... Rxc3 {[%clk
0:00:40.2]} 25. Rd3 {[%clk 0:00:31.6]} 25... Rxd3 {[%clk 0:00:39.1]} 26. cxd3
{[%clk 0:00:32.5]} 26... Ng3 {[%clk 0:00:39.4]} 27. hxg6 {[%clk 0:00:29.2]}
27... hxg6 {[%clk 0:00:33.3]} 28. Rh7 {[%clk 0:00:27.9]} 28... Nf5 {[%clk
0:00:31.3]} 29. Bd2 {[%clk 0:00:28.3]} 29... Ke6 {[%clk 0:00:31]} 30. Bc3 {[%clk
0:00:26.5]} 30... b5 {[%clk 0:00:30.8]} 31. b4 {[%clk 0:00:26.5]} 31... Rc8
{[%clk 0:00:27.3]} 32. Rh1 {[%clk 0:00:26.9]} 32... Kd5 {[%clk 0:00:26.1]} 33.
Ra1 {[%clk 0:00:26.7]} 33... Rc6 {[%clk 0:00:25]} 34. Re1 {[%clk 0:00:27.4]}
34... e6 {[%clk 0:00:25]} 35. Rh1 {[%clk 0:00:27.4]} 35... Rc7 {[%clk
0:00:23.4]} 36. Ra1 {[%clk 0:00:26.8]} 36... Ra7 {[%clk 0:00:22.7]} 37. Rh1
{[%clk 0:00:27.7]} 37... e5 {[%clk 0:00:21.4]} 38. fxe5 {[%clk 0:00:27.5]} 38...
dxe5 {[%clk 0:00:22.1]} 39. Rh8 {[%clk 0:00:28.1]} 39... Re7 {[%clk 0:00:20.2]}
40. Rd8+ {[%clk 0:00:27]} 40... Kc6 {[%clk 0:00:20]} 41. Ra8 {[%clk 0:00:26.2]}
41... Kb7 {[%clk 0:00:19.8]} 42. Rg8 {[%clk 0:00:26.4]} 42... Nh4 {[%clk
0:00:19.2]} 43. Be1 {[%clk 0:00:25.8]} 43... Nf3 {[%clk 0:00:19.7]} 44. Bf2
{[%clk 0:00:25.6]} 44... e4 {[%clk 0:00:18.7]} 45. dxe4 {[%clk 0:00:24.1]} 45...
Rxe4 {[%clk 0:00:13.8]} 46. Rg7+ {[%clk 0:00:22.4]} 46... Kc6 {[%clk 0:00:09.6]}
47. Rxg6+ {[%clk 0:00:22.8]} 47... Kd5 {[%clk 0:00:10.1]} 48. Rxa6 {[%clk
0:00:20.5]} 48... Re2+ {[%clk 0:00:09.2]} 49. Kc3 {[%clk 0:00:19.4]} 49... Rxf2
{[%clk 0:00:07.7]} 50. g6 {[%clk 0:00:20]} 50... Ne5 {[%clk 0:00:05.3]} 51. g7
{[%clk 0:00:18.8]} 51... Rf3+ {[%clk 0:00:05.9]} 52. Kc2 {[%clk 0:00:18.6]}
52... Rg3 {[%clk 0:00:06.6]} 53. Ra7 {[%clk 0:00:19.2]} 53... Kc4 {[%clk
0:00:06.5]} 54. Re7 {[%clk 0:00:19.8]} 54... Nc6 {[%clk 0:00:06.1]} 55. Rc7
{[%clk 0:00:19.9]} 55... Kd5 {[%clk 0:00:06.6]} 56. Rd7+ {[%clk 0:00:20.3]}
56... Ke6 {[%clk 0:00:06.3]} 57. Rb7 {[%clk 0:00:20.9]} 57... Kd6 {[%clk
0:00:06.4]} 58. Kd2 {[%clk 0:00:19.9]} 58... Nd4 {[%clk 0:00:06.7]} 59. Rf7
{[%clk 0:00:17.6]} 59... Kd5 {[%clk 0:00:06.7]} 60. Rc7 {[%clk 0:00:17.2]} 60...
Rg2+ {[%clk 0:00:06.7]} 61. Kd3 {[%clk 0:00:16.9]} 61... Rg3+ {[%clk 0:00:07.1]}
62. Kd2 {[%clk 0:00:17.6]} 62... Ke4 {[%clk 0:00:07.1]} 63. Re7+ {[%clk
0:00:17.4]} 63... Kf5 {[%clk 0:00:06.9]} 64. Rf7+ {[%clk 0:00:17.2]} 64... Ke6
{[%clk 0:00:07]} 65. Rc7 {[%clk 0:00:17.2]} 65... Kd5 {[%clk 0:00:06.6]} 66.
Rd7+ {[%clk 0:00:15.2]} 66... Kc4 {[%clk 0:00:06.5]} 67. Ke1 {[%clk 0:00:13.9]}
67... Nf5 {[%clk 0:00:06]} 68. Kf2 {[%clk 0:00:10.8]} 68... Rxg7 {[%clk
0:00:05.4]} 69. Rd1 {[%clk 0:00:11]} 69... Nd4 {[%clk 0:00:05.3]} 70. Rb1 {[%clk
0:00:11.9]} 70... Re7 {[%clk 0:00:04.5]} 71. Rb2 {[%clk 0:00:11.2]} 71... Re2+
{[%clk 0:00:04]} 72. Rxe2 {[%clk 0:00:11.1]} 72... Nxe2 {[%clk 0:00:04.6]} 73.
Kxe2 {[%clk 0:00:12]} 73... Kxb4 {[%clk 0:00:04.7]} 74. Kd1 {[%clk 0:00:12.9]}
74... Kb3 {[%clk 0:00:04.7]} 75. Kc1 {[%clk 0:00:13.8]} 75... Ka2 {[%clk
0:00:04.9]} 76. Kd2 {[%clk 0:00:14.3]} 76... b4 {[%clk 0:00:05.5]} 77. Kc1
{[%clk 0:00:15.2]} 77... b3 {[%clk 0:00:06]} 78. Kd2 {[%clk 0:00:16.1]} 78... b2
{[%clk 0:00:06.5]} 79. Kc3 {[%clk 0:00:17]} 79... b1=Q {[%clk 0:00:06.6]} 80.
Kd2 {[%clk 0:00:17.9]} 80... Qe4 {[%clk 0:00:06.8]} 81. Kc3 {[%clk 0:00:18.8]}
0-1